bitfinex/quotes_BTCUSD_20250105
["timestamp","ask_amount","ask_price","bid_price","bid_amount"]
[1736117322946,0.67299042,98689.0,98688.0,0.000171]
[1736117323948,0.5690041,98689.0,98688.0,0.000171]
[1736117324150,0.5660041,98689.0,98688.0,0.000171]
[1736117324655,0.5690041,98689.0,98688.0,0.000171]
[1736117324997,0.67299042,98689.0,98688.0,0.000171]
[1736117329040,0.92299042,98689.0,98688.0,0.000171]
[1736117332461,0.182441,98662.0,98661.0,0.0001]
[1736117332664,0.31810377,98662.0,98661.0,0.0001]
[1736117333944,0.65059623,98662.0,98661.0,0.00059289]
[1736117334332,0.90059623,98662.0,98661.0,0.00059289]
[1736117334737,0.90259623,98662.0,98661.0,0.00059289]
[1736117335147,0.90359623,98662.0,98661.0,0.00059289]
[1736117335455,0.97225326,98662.0,98661.0,0.00059289]
[1736117336051,0.97525326,98662.0,98661.0,0.00059289]
[1736117337627,0.98562658,98662.0,98661.0,0.00059289]
[1736117338203,1.06758558,98662.0,98661.0,0.00059289]
[1736117339430,1.11608558,98662.0,98661.0,0.00059289]
[1736117339633,0.182452,98656.0,98634.0,0.000171]
[1736117339833,0.28643832,98656.0,98655.0,0.00022004]
[1736117340902,0.29443832,98656.0,98655.0,0.00022004]
[1736117341796,0.62693078,98656.0,98655.0,0.00022004]
[1736117342216,0.61993078,98656.0,98655.0,0.00022004]
[1736117342616,0.62893078,98656.0,98655.0,0.00022004]
[1736117343540,0.62793078,98656.0,98655.0,0.00022004]
[1736117343752,0.62293078,98656.0,98655.0,0.00022004]
[1736117344286,0.62793078,98656.0,98655.0,0.00022004]
[1736117344845,0.63093078,98656.0,98655.0,0.00022004]
[1736117345397,0.96201645,98656.0,98655.0,0.00022004]
[1736117345782,0.85803013,98656.0,98655.0,0.00022004]
[1736117346535,0.85503013,98656.0,98655.0,0.00022004]
[1736117346729,0.85003013,98656.0,98655.0,0.00022004]
[1736117347192,0.85503013,98656.0,98655.0,0.00022004]
[1736117347361,0.84603013,98656.0,98655.0,0.00022004]
[1736117347576,0.85003013,98656.0,98655.0,0.00022004]
[1736117347769,0.85903013,98656.0,98655.0,0.00022004]
[1736117348012,0.63193078,98656.0,98655.0,0.00022004]
[1736117349176,0.81353015,98656.0,98655.0,0.00022004]
[1736117352692,0.91751647,98656.0,98655.0,0.00022004]
[1736117353053,0.63193078,98656.0,98655.0,0.00022004]
[1736117356457,1.12974078,98656.0,98655.0,0.00022004]
[1736117356689,1.12574078,98656.0,98655.0,0.00022004]
[1736117356886,1.13474078,98656.0,98655.0,0.00022004]
[1736117357148,1.13874078,98656.0,98655.0,0.00022004]
[1736117357503,1.32034015,98656.0,98655.0,0.00022004]
[1736117357882,1.42432647,98656.0,98655.0,0.00022004]
[1736117358769,1.2427271,98656.0,98655.0,0.00022004]
[1736117358963,1.27427904,98656.0,98655.0,0.00022004]
[1736117359201,1.2427271,98656.0,98655.0,0.00022004]
[1736117359416,1.27428558,98656.0,98655.0,0.00022004]
[1736117359628,1.17029926,98656.0,98655.0,0.00022004]
[1736117361021,1.39739861,98656.0,98655.0,0.00022004]
[1736117361392,1.39339861,98656.0,98655.0,0.00022004]
[1736117362025,1.39639861,98656.0,98655.0,0.00022004]
[1736117363078,1.38739861,98656.0,98655.0,0.00022004]
[1736117363277,1.38439861,98656.0,98655.0,0.00022004]
[1736117363465,1.39339861,98656.0,98655.0,0.00022004]
[1736117363668,1.38739861,98656.0,98655.0,0.00022004]
[1736117364104,1.39639861,98656.0,98655.0,0.00022004]
[1736117364481,1.39339861,98656.0,98655.0,0.00022004]
[1736117364686,1.39739861,98656.0,98655.0,0.00022004]
[1736117364893,1.17029926,98656.0,98655.0,0.00022004]
[1736117365165,1.16629926,98656.0,98655.0,0.00022004]
[1736117365770,1.15729926,98656.0,98655.0,0.00022004]
[1736117365973,1.16629926,98656.0,98655.0,0.00022004]
[1736117366245,1.15729926,98656.0,98655.0,0.00022004]
[1736117366478,1.16629926,98656.0,98655.0,0.00022004]
[1736117366798,1.15729926,98656.0,98655.0,0.00022004]
[1736117367001,1.16629926,98656.0,98655.0,0.00022004]
[1736117367263,1.16129926,98656.0,98655.0,0.00022004]
[1736117367620,1.17029926,98656.0,98655.0,0.00022004]
[1736117368223,1.16629926,98656.0,98655.0,0.00022004]
[1736117368424,1.17029926,98656.0,98655.0,0.00022004]
[1736117373425,1.6405089,98656.0,98655.0,0.00022004]
[1736117375520,1.74449522,98656.0,98655.0,0.00022004]
[1736117376377,1.6405089,98656.0,98655.0,0.00022004]
[1736117378537,1.6405089,98656.0,98655.0,0.07842004]
[1736117380527,1.6405089,98656.0,98655.0,0.00022004]
[1736117381076,1.6365089,98656.0,98655.0,0.00022004]
[1736117381442,1.6275089,98656.0,98655.0,0.00022004]
[1736117381669,1.6315089,98656.0,98655.0,0.00022004]
[1736117381820,1.6405089,98656.0,98655.0,0.00022004]
[1736117393470,1.6894089,98656.0,98655.0,0.00022004]
[1736117393758,1.6405089,98656.0,98655.0,0.00022004]
[1736117394526,1.6315089,98656.0,98655.0,0.00022004]
[1736117394983,1.6405089,98656.0,98655.0,0.00022004]
[1736117395162,1.6365089,98656.0,98655.0,0.00022004]
[1736117395375,1.6395089,98656.0,98655.0,0.00022004]
[1736117396862,1.6365089,98656.0,98655.0,0.00022004]
[1736117397226,1.6395089,98656.0,98655.0,0.00022004]
[1736117397670,1.6365089,98656.0,98655.0,0.00022004]
[1736117398081,1.6275089,98656.0,98655.0,0.00022004]
[1736117398230,1.6365089,98656.0,98655.0,0.00022004]
[1736117398439,1.6395089,98656.0,98655.0,0.00022004]
[1736117398858,1.6305089,98656.0,98655.0,0.00022004]
[1736117399481,1.6395089,98656.0,98655.0,0.00022004]
[1736117399682,1.6305089,98656.0,98655.0,0.00022004]
[1736117399878,1.6275089,98656.0,98655.0,0.00022004]
[1736117400108,1.6365089,98656.0,98655.0,0.00022004]
[1736117400531,1.6395089,98656.0,98655.0,0.00022004]
[1736117401550,1.74349522,98656.0,98655.0,0.00022004]
[1736117402112,1.6395089,98656.0,98655.0,0.00022004]
[1736117409422,1.6305089,98656.0,98655.0,0.00022004]
[1736117409596,1.6395089,98656.0,98655.0,0.00022004]
[1736117409829,1.6365089,98656.0,98655.0,0.00022004]
[1736117410011,1.6395089,98656.0,98655.0,0.00022004]
[1736117412330,1.6305089,98656.0,98655.0,0.00022004]
[1736117412711,1.6365089,98656.0,98655.0,0.00022004]
[1736117412919,1.6395089,98656.0,98655.0,0.00022004]
[1736117420944,1.6305089,98656.0,98655.0,0.00022004]
[1736117421348,1.6395089,98656.0,98655.0,0.00022004]
[1736117421699,1.6365089,98656.0,98655.0,0.00022004]
[1736117421931,1.6395089,98656.0,98655.0,0.00022004]
[1736117422403,0.2211,98655.0,98628.0,6e-07]
[1736117422545,0.558302,98629.0,98628.0,9e-07]
[1736117422753,0.6938468,98629.0,98628.0,9e-07]
[1736117423247,1.2006568,98629.0,98628.0,9e-07]
[1736117423454,1.22090376,98629.0,98628.0,9e-07]
[1736117423659,1.29282616,98629.0,98628.0,9e-07]
[1736117423863,1.22090376,98629.0,98628.0,9e-07]
[1736117424076,1.55339622,98629.0,98628.0,9e-07]
[1736117424224,1.56239622,98629.0,98628.0,9e-07]
[1736117425441,2.47135015,98629.0,98628.0,9e-07]
[1736117425684,2.47435015,98629.0,98628.0,9e-07]
[1736117425926,2.47435015,98629.0,98621.0,0.0001]
[1736117425927,0.432515,98622.0,98621.0,0.0001]
[1736117426127,1.0748698,98622.0,98621.0,0.0001]
[1736117426959,0.182529,98614.0,98605.0,0.000171]
[1736117427136,0.3180738,98614.0,98613.0,0.00022008]
[1736117428170,0.1355448,98614.0,98601.0,0.07714326]
[1736117428324,0.365096,98604.0,98601.0,0.07719255]
[1736117429340,0.182552,98602.0,98601.0,0.07719255]
[1736117431027,0.74253538,98602.0,98601.0,0.07719255]
[1736117431186,0.7527422,98602.0,98601.0,0.07719255]
[1736117431425,0.7577422,98602.0,98601.0,0.07719255]
[1736117432104,0.53025128,98602.0,98601.0,0.07719255]
[1736117433572,0.71211698,98602.0,98601.0,0.07719255]
[1736117434799,0.53025128,98602.0,98601.0,0.07719255]
[1736117435684,0.33411073,98602.0,98601.0,0.07719255]
[1736117438357,0.19775882,98602.0,98601.0,0.07719255]
[1736117438698,0.19792982,98602.0,98601.0,0.07719255]
[1736117440948,0.28877954,98602.0,98601.0,0.07719255]
[1736117442862,0.19792982,98602.0,98601.0,0.07719255]
[1736117443266,0.01537782,98602.0,98591.0,0.0471]
[1736117443471,0.182561,98597.0,98591.0,0.0471]
[1736117444555,0.184561,98597.0,98591.0,0.0471]
[1736117446349,0.182561,98597.0,98596.0,0.28187276]
[1736117446806,0.185561,98597.0,98596.0,0.28187276]
[1736117449922,0.185561,98597.0,98596.0,0.28195826]
[1736117454087,0.185561,98597.0,98596.0,0.19985826]
[1736117454466,0.182561,98597.0,98596.0,0.19985826]
[1736117455843,0.185561,98597.0,98596.0,0.19985826]
[1736117457410,0.21726193,98597.0,98596.0,0.19985826]
[1736117457998,0.30811165,98597.0,98596.0,0.19985826]
[1736117459436,0.03470093,98597.0,98596.0,0.32445826]
[1736117459819,0.003,98597.0,98596.0,0.32445826]
[1736117462610,0.09092368,98600.0,98596.0,0.32445826]
[1736117462816,0.002,98597.0,98596.0,0.32445826]
[1736117463669,0.182559,98598.0,98596.0,0.32445826]
[1736117463992,0.002,98597.0,98596.0,0.32545826]
[1736117464391,0.002,98597.0,98596.0,0.32445826]
[1736117464619,0.002,98597.0,98596.0,0.32545826]
[1736117465211,0.182559,98598.0,98596.0,0.32445826]
[1736117465442,0.13635191,98597.0,98596.0,0.33233826]
[1736117465594,0.13835191,98597.0,98596.0,0.33233826]
[1736117465801,0.13635191,98597.0,98596.0,0.33233826]
[1736117465997,0.13735191,98597.0,98596.0,0.33233826]
[1736117466203,0.51908956,98597.0,98596.0,0.33233826]
[1736117466804,0.51908956,98597.0,98596.0,0.33133826]
[1736117467189,0.51908956,98597.0,98596.0,0.33233826]
[1736117467391,0.56471478,98597.0,98596.0,0.33233826]
[1736117468537,0.33722386,98597.0,98596.0,0.33233826]
[1736117468669,0.33722386,98597.0,98596.0,0.32545826]
[1736117468870,0.33722386,98597.0,98596.0,0.33233826]
[1736117469316,0.61030154,98597.0,98596.0,0.33233826]
[1736117470636,0.33722386,98597.0,98596.0,0.33233826]
[1736117472251,0.33622386,98597.0,98596.0,0.33233826]
[1736117472653,0.33822386,98597.0,98596.0,0.33233826]
[1736117472864,0.33822386,98597.0,98596.0,0.32445826]
[1736117473075,0.33822386,98597.0,98596.0,0.33133826]
[1736117473278,0.33822386,98597.0,98596.0,0.33233826]
[1736117473882,0.33822386,98597.0,98596.0,0.33133826]
[1736117474333,0.33822386,98597.0,98596.0,0.33233826]
[1736117474663,0.33622386,98597.0,98596.0,0.33233826]
[1736117475076,0.33722386,98597.0,98596.0,0.33233826]
[1736117476167,0.33722386,98597.0,98596.0,0.20773826]
[1736117479326,0.33722386,98597.0,98596.0,0.20085826]
[1736117479523,0.36893017,98597.0,98596.0,0.20085826]
[1736117480328,0.33722386,98597.0,98596.0,0.20085826]
[1736117480526,0.36893019,98597.0,98596.0,0.20085826]
[1736117481277,0.36893019,98597.0,98596.0,0.20769826]
[1736117481637,0.36893019,98597.0,98596.0,0.20085826]
[1736117481886,0.36893019,98597.0,98596.0,0.20769826]
[1736117482456,0.36793019,98597.0,98596.0,0.20769826]
[1736117482639,0.36793019,98597.0,98596.0,0.20669826]
[1736117482796,0.37093019,98597.0,98596.0,0.20669826]
[1736117483903,0.37093019,98597.0,98596.0,0.20769826]
[1736117484112,0.37193019,98597.0,98596.0,0.20769826]
[1736117486453,0.37193019,98597.0,98596.0,0.20669826]
[1736117487507,0.36793019,98597.0,98596.0,0.20669826]
[1736117487891,0.37093019,98597.0,98596.0,0.20669826]
[1736117488129,0.36793019,98597.0,98596.0,0.20669826]
[1736117488557,0.36993019,98597.0,98596.0,0.20669826]
[1736117489168,0.36993019,98597.0,98596.0,0.20769826]
[1736117491620,0.36793019,98597.0,98596.0,0.20769826]
[1736117491774,0.36793019,98597.0,98596.0,0.20669826]
[1736117491967,0.37093019,98597.0,98596.0,0.20669826]
[1736117493809,0.33622386,98597.0,98596.0,0.20669826]
[1736117494141,0.33922386,98597.0,98596.0,0.20669826]
[1736117494363,0.3709418,98597.0,98596.0,0.20669826]
[1736117494648,0.33922386,98597.0,98596.0,0.20669826]
[1736117494849,0.36794142,98597.0,98596.0,0.20669826]
[1736117495273,0.37094142,98597.0,98596.0,0.20669826]
[1736117496665,0.36794142,98597.0,98596.0,0.20669826]
[1736117497071,0.37094142,98597.0,98596.0,0.20669826]
[1736117497861,0.37094142,98597.0,98596.0,0.19985826]
[1736117499853,0.36794142,98597.0,98596.0,0.19985826]
[1736117500349,0.37194142,98597.0,98596.0,0.19985826]
[1736117500582,0.36794142,98597.0,98596.0,0.19985826]
[1736117500791,0.37194142,98597.0,98596.0,0.19985826]
[1736117515049,0.46690142,98597.0,98596.0,0.19985826]
[1736117522529,0.46290142,98597.0,98596.0,0.19985826]
[1736117522927,0.46690142,98597.0,98596.0,0.19985826]
[1736117525487,0.46290142,98597.0,98596.0,0.19985826]
[1736117526025,0.46590142,98597.0,98596.0,0.19985826]
[1736117526256,0.46290142,98597.0,98596.0,0.19985826]
[1736117526494,0.46590142,98597.0,98596.0,0.19985826]
[1736117527017,0.46290142,98597.0,98596.0,0.19985826]
[1736117527448,0.46395525,98597.0,98596.0,0.19985826]
[1736117528796,0.46095525,98597.0,98596.0,0.19985826]
[1736117529020,0.54725525,98597.0,98596.0,0.19985826]
[1736117529673,0.46595525,98597.0,98596.0,0.19985826]
[1736117529877,0.46095525,98597.0,98596.0,0.19985826]
[1736117530145,0.46595525,98597.0,98596.0,0.19985826]
[1736117531128,0.46695525,98597.0,98596.0,0.19985826]
[1736117532308,0.46595525,98597.0,98596.0,0.19985826]
[1736117532499,0.46195525,98597.0,98596.0,0.19985826]
[1736117532692,0.46795525,98597.0,98596.0,0.19985826]
[1736117537507,0.46695525,98597.0,98596.0,0.19985826]
[1736117538393,0.46195525,98597.0,98596.0,0.19985826]
[1736117538644,0.46795525,98597.0,98596.0,0.19985826]
[1736117539651,0.46812625,98597.0,98596.0,0.19985826]
[1736117540101,0.46212625,98597.0,98596.0,0.19985826]
[1736117540281,0.182574,98590.0,98589.0,0.000171]
[1736117542500,0.185574,98590.0,98589.0,0.000171]
[1736117542701,0.182574,98590.0,98589.0,0.000171]
[1736117543086,0.185574,98590.0,98589.0,0.000171]
[1736117543822,0.182574,98590.0,98589.0,0.000171]
[1736117544020,0.185574,98590.0,98589.0,0.000171]
[1736117544336,0.53264868,98590.0,98589.0,0.000171]
[1736117545805,0.52964868,98590.0,98589.0,0.000171]
[1736117546351,0.53264868,98590.0,98589.0,0.000171]
[1736117546648,0.52964868,98590.0,98589.0,0.000171]
[1736117546849,0.53364868,98590.0,98589.0,0.000171]
[1736117551719,0.52964868,98590.0,98589.0,0.000171]
[1736117551873,0.53364868,98590.0,98589.0,0.000171]
[1736117553987,0.56535055,98590.0,98589.0,0.000171]
[1736117554224,0.56635055,98590.0,98589.0,0.000171]
[1736117554658,0.56135055,98590.0,98589.0,0.000171]
[1736117554863,0.56235055,98590.0,98589.0,0.000171]
[1736117555072,0.56835055,98590.0,98589.0,0.000171]
[1736117555292,0.56235055,98590.0,98589.0,0.000171]
[1736117555499,0.79483687,98590.0,98589.0,0.000171]
[1736117555722,0.79983687,98590.0,98589.0,0.000171]
[1736117555896,0.79483687,98590.0,98589.0,0.000171]
[1736117556282,0.79983687,98590.0,98589.0,0.000171]
[1736117556444,0.79483687,98590.0,98589.0,0.000171]
[1736117556839,0.79583687,98590.0,98589.0,0.000171]
[1736117557500,0.79483687,98590.0,98589.0,0.000171]
[1736117557705,0.182589,98582.0,98568.0,0.00684]
[1736117557906,0.31827719,98582.0,98581.0,0.00014931]
[1736117558875,0.32327719,98582.0,98581.0,0.00014931]
[1736117559277,0.66028916,98582.0,98581.0,0.00014931]
[1736117562859,0.93392742,98582.0,98581.0,0.00014931]
[1736117563213,0.90222555,98582.0,98581.0,0.00014931]
[1736117563586,0.93389431,98582.0,98581.0,0.00014931]
[1736117563929,0.89722555,98582.0,98581.0,0.00014931]
[1736117564138,0.62358729,98582.0,98581.0,0.00014931]
[1736117564343,0.66025498,98582.0,98581.0,0.00014931]
[1736117564545,0.62858729,98582.0,98581.0,0.00014931]
[1736117565829,0.52460097,98582.0,98581.0,0.00014931]
[1736117571293,0.34201197,98582.0,98581.0,0.00014931]
[1736117574285,0.34201197,98582.0,98581.0,0.00023471]
[1736117586394,0.37370431,98582.0,98581.0,0.00023471]
[1736117595170,0.64734257,98582.0,98581.0,0.00023471]
[1736117598915,0.37370431,98582.0,98581.0,0.00023471]
[1736117608515,0.36870431,98582.0,98581.0,0.00023471]
[1736117608775,0.36970431,98582.0,98581.0,0.00023471]
[1736117609589,0.37470431,98582.0,98581.0,0.00023471]
[1736117616746,0.37370431,98582.0,98581.0,0.00023471]
[1736117616941,0.36870431,98582.0,98581.0,0.00023471]
[1736117617229,0.37370431,98582.0,98581.0,0.00023471]
[1736117620579,0.36870431,98582.0,98581.0,0.00023471]
[1736117620781,0.37370431,98582.0,98581.0,0.00023471]
[1736117620993,0.37470431,98582.0,98581.0,0.00023471]
[1736117628193,0.37370431,98582.0,98581.0,0.00023471]
[1736117628746,0.36870431,98582.0,98581.0,0.00023471]
[1736117629967,0.37370431,98582.0,98581.0,0.00023471]
[1736117630356,0.36970431,98582.0,98581.0,0.00023471]
[1736117630490,0.37470431,98582.0,98581.0,0.00023471]
[1736117636948,0.37370431,98582.0,98581.0,0.00023471]
[1736117637280,0.36970431,98582.0,98581.0,0.00023471]
[1736117637706,0.37470431,98582.0,98581.0,0.00023471]
[1736117638050,0.36970431,98582.0,98581.0,0.00023471]
[1736117638595,0.36870431,98582.0,98581.0,0.00023471]
[1736117638801,0.37370431,98582.0,98581.0,0.00023471]
[1736117639980,0.36870431,98582.0,98581.0,0.00023471]
[1736117640184,0.36970431,98582.0,98581.0,0.00023471]
[1736117640532,0.37470431,98582.0,98581.0,0.00023471]
[1736117640717,0.36870431,98582.0,98581.0,0.00023471]
[1736117640874,0.37470431,98582.0,98581.0,0.00023471]
[1736117641293,0.36870431,98582.0,98581.0,0.00023471]
[1736117641499,0.37470431,98582.0,98581.0,0.00023471]
[1736117641694,0.37570431,98582.0,98581.0,0.00023471]
[1736117642299,0.78764336,98582.0,98581.0,0.00023471]
[1736117643126,0.78664336,98582.0,98581.0,0.00023471]
[1736117643337,0.78764336,98582.0,98581.0,0.00023471]
[1736117643852,0.47969063,98582.0,98581.0,0.00023471]
[1736117644460,0.48569063,98582.0,98581.0,0.00023471]
[1736117645184,0.78164336,98582.0,98581.0,0.00023471]
[1736117645427,0.54777,98581.0,98564.0,0.0756]
[1736117645665,0.07762456,98574.0,98573.0,0.0068]
[1736117645802,0.07762456,98580.0,98573.0,0.0068]
[1736117646699,0.182603,98574.0,98573.0,0.0068]
[1736117648151,0.186603,98574.0,98573.0,0.0068]
[1736117648571,0.52361497,98574.0,98573.0,0.0068]
[1736117649413,0.51961497,98574.0,98573.0,0.0068]
[1736117649934,0.52361497,98574.0,98573.0,0.0068]
[1736117650713,0.182612,98570.0,98564.0,0.0756]
[1736117650915,0.182612,98570.0,98565.0,0.0068]
[1736117653149,0.22834477,98566.0,98565.0,0.0068]
[1736117654536,0.22834477,98567.0,98565.0,0.0068]
[1736117654943,0.22834477,98567.0,98566.0,0.0068]
[1736117656168,0.23034477,98567.0,98566.0,0.0068]
[1736117657052,0.002,98567.0,98566.0,0.0068]
[1736117657782,0.002,98567.0,98566.0,0.0827]
[1736117658887,0.002,98567.0,98566.0,0.0068]
[1736117661345,0.002,98567.0,98565.0,8.54e-05]
[1736117661555,0.002,98567.0,98566.0,0.0068]
[1736117669727,0.002,98567.0,98566.0,0.0068855]
[1736117670007,0.33916532,98567.0,98566.0,0.0068855]
[1736117673852,0.33916532,98567.0,98566.0,0.0889855]
[1736117675076,0.56745229,98567.0,98566.0,0.0068855]
[1736117675869,0.33916532,98567.0,98566.0,0.0068855]
[1736117677076,0.52179606,98567.0,98566.0,0.0068855]
[1736117677486,0.52179606,98567.0,98566.0,0.1294855]
[1736117677843,0.52179606,98567.0,98566.0,0.33347182]
[1736117678312,0.13896878,98567.0,98566.0,0.33347182]
[1736117679118,0.13696878,98567.0,98566.0,0.33347182]
[1736117679699,0.09129983,98569.0,98567.0,0.081]
[1736117679917,0.09129983,98569.0,98568.0,0.10398632]
[1736117681041,0.09129983,98570.0,98568.0,0.10398632]
[1736117682122,0.001,98569.0,98568.0,0.10398632]
[1736117682324,0.09129983,98571.0,98568.0,0.10398632]
[1736117682439,0.002,98570.0,98568.0,0.10498632]
[1736117682838,0.09129983,98571.0,98568.0,0.10498632]
[1736117683039,0.09129983,98571.0,98568.0,0.10398632]
[1736117683328,0.09129983,98571.0,98568.0,0.10498632]
[1736117684268,0.09129983,98571.0,98568.0,0.001]
[1736117684664,0.09129983,98571.0,98569.0,0.0068]
[1736117684874,0.09129983,98571.0,98567.0,0.081]
[1736117684875,0.09129983,98572.0,98567.0,0.081]
[1736117685077,0.09129983,98572.0,98570.0,0.0068]
[1736117685401,0.09129983,98572.0,98571.0,0.0068]
[1736117685949,0.18263074,98572.0,98571.0,0.0068]
[1736117687172,0.3368947,98573.0,98571.0,0.0068]
[1736117687573,0.3368947,98573.0,98572.0,0.0068]
[1736117688983,0.3378947,98573.0,98572.0,0.0068]
[1736117689144,0.3368947,98573.0,98572.0,0.0068]
[1736117689539,0.3378947,98573.0,98572.0,0.0068]
[1736117689711,0.56618167,98573.0,98572.0,0.0068]
[1736117689867,0.56518167,98573.0,98572.0,0.0068]
[1736117690098,0.56618167,98573.0,98572.0,0.0068]
[1736117690886,0.3378947,98573.0,98572.0,0.0068]
[1736117691890,0.3368947,98573.0,98572.0,0.0068]
[1736117692043,0.3388947,98573.0,98572.0,0.0068]
[1736117692248,0.002,98573.0,98572.0,0.0068]
[1736117693462,0.56506542,98573.0,98572.0,0.0068]
[1736117693757,0.56606542,98573.0,98572.0,0.0068]
[1736117694581,0.001,98573.0,98572.0,0.0068]
[1736117695002,0.22817072,98574.0,98572.0,0.0068]
[1736117695226,0.001,98573.0,98572.0,0.0068]
[1736117695676,0.3368947,98573.0,98572.0,0.0068]
[1736117695895,0.3378947,98573.0,98572.0,0.0068]
[1736117696154,0.3368947,98573.0,98572.0,0.0068]
[1736117696529,0.3378947,98573.0,98572.0,0.0068]
[1736117696744,0.001,98573.0,98572.0,0.0068]
[1736117698172,0.3368947,98573.0,98572.0,0.0068]
[1736117698463,0.3378947,98573.0,98572.0,0.0068]
[1736117699585,0.3368947,98573.0,98572.0,0.0068]
[1736117700084,0.3388947,98573.0,98572.0,0.0068]
[1736117700927,0.002,98573.0,98572.0,0.0068]
[1736117701531,0.182605,98573.0,98572.0,0.0068]
[1736117701733,0.184605,98573.0,98572.0,0.0068]
[1736117702359,0.5214997,98573.0,98572.0,0.0068]
[1736117702962,0.5194997,98573.0,98572.0,0.0068]
[1736117703319,0.5214997,98573.0,98572.0,0.0068]
[1736117703524,0.3388947,98573.0,98572.0,0.0068]
[1736117704829,0.3368947,98573.0,98572.0,0.0068]
[1736117705607,0.3388947,98573.0,98572.0,0.0068]
[1736117705988,0.3368947,98573.0,98572.0,0.0068]
[1736117706397,0.3388947,98573.0,98572.0,0.0068]
[1736117706606,0.002,98573.0,98572.0,0.0068]
[1736117706805,0.00194001,98573.0,98572.0,0.0068]
[1736117707852,0.33883471,98573.0,98572.0,0.0068]
[1736117711056,0.3368947,98573.0,98572.0,0.0068]
[1736117711478,0.3388947,98573.0,98572.0,0.0068]
[1736117716953,0.3388947,98573.0,98572.0,0.0068854]
[1736117717446,0.002,98573.0,98572.0,0.0068854]
[1736117719541,0.33903615,98573.0,98572.0,0.0068854]
[1736117726246,0.13896164,98573.0,98572.0,0.0068854]
[1736117727709,0.002,98573.0,98572.0,0.0068854]
[1736117728456,0.0021708,98573.0,98572.0,0.0068854]
[1736117729900,0.5218072,98573.0,98572.0,0.0068854]
[1736117731191,0.33922187,98573.0,98572.0,0.0068854]
[1736117732326,0.5218072,98573.0,98572.0,0.0068854]
[1736117735115,0.5218072,98573.0,98572.0,8.54e-05]
[1736117735337,0.5218072,98573.0,98572.0,0.0068854]
[1736117736533,0.5218072,98573.0,98572.0,0.31297172]
[1736117736903,0.13913328,98573.0,98572.0,0.31297172]
[1736117737719,0.13713328,98573.0,98572.0,0.31297172]
[1736117738274,0.0001708,98573.0,98572.0,0.31297172]
[1736117738884,0.0001708,98573.0,98572.0,0.3230817]
[1736117748175,0.0001708,98573.0,98572.0,0.3240817]
[1736117748784,0.0001708,98573.0,98572.0,0.3230817]
[1736117749163,0.0001708,98573.0,98572.0,0.3240817]
[1736117749864,0.0001708,98573.0,98572.0,0.3250817]
[1736117750279,0.0001708,98573.0,98572.0,0.3260817]
[1736117755108,0.0001708,98573.0,98572.0,0.3240817]
[1736117755342,0.0001708,98573.0,98572.0,0.3230817]
[1736117755551,0.0011708,98573.0,98572.0,0.3290817]
[1736117755751,0.0011708,98573.0,98572.0,0.3260817]
[1736117755929,0.0011708,98573.0,98572.0,0.3230817]
[1736117756132,0.0021708,98573.0,98572.0,0.3260817]
[1736117756290,0.0011708,98573.0,98572.0,0.3260817]
[1736117756492,0.0011708,98573.0,98572.0,0.3290817]
[1736117756698,0.0021708,98573.0,98572.0,0.3290817]
[1736117757548,0.0021708,98573.0,98572.0,0.3260817]
[1736117757900,0.0021708,98573.0,98572.0,0.3290817]
[1736117758483,0.0021708,98573.0,98572.0,0.4790817]
[1736117758682,0.0021708,98573.0,98572.0,0.5790817]
[1736117764360,0.0021708,98573.0,98572.0,0.6828817]
[1736117764576,0.0021708,98573.0,98572.0,0.5790817]
[1736117764728,0.0001708,98573.0,98572.0,0.5760817]
[1736117764926,0.0001708,98573.0,98572.0,0.5770817]
[1736117765340,0.0001708,98573.0,98572.0,0.5800817]
[1736117767564,0.0001708,98573.0,98572.0,0.6800817]
[1736117767938,0.0001708,98573.0,98572.0,1.2236817]
[1736117769113,0.0001708,98573.0,98572.0,1.3304817]
[1736117770297,0.0001708,98573.0,98572.0,1.42170949]
[1736117771975,0.0001708,98573.0,98572.0,1.3304817]
[1736117774808,0.0001708,98573.0,98572.0,1.42125455]
[1736117779700,0.0001708,98573.0,98572.0,1.3304817]
[1736117786137,0.0001708,98573.0,98572.0,1.46732339]
[1736117787268,0.0001708,98573.0,98572.0,1.62533493]
[1736117789813,0.0001708,98573.0,98572.0,1.80779051]
[1736117790578,0.1049806,98597.0,98572.0,1.80779051]
[1736117790579,0.02791502,98617.0,98612.0,0.5436]
[1736117790785,0.1366145,98627.0,98626.0,0.6568]
[1736117791008,0.04215224,98627.0,98626.0,0.78378632]
[1736117791217,0.13854694,98629.0,98628.0,1.1234]
[1736117791423,0.13854694,98629.0,98628.0,1.28767163]
[1736117791676,0.13862696,98629.0,98628.0,1.28767163]
[1736117792091,0.00202895,98629.0,98628.0,1.28767163]
[1736117792312,0.0099421,98648.0,98647.0,0.45]
[1736117792502,0.01002207,98648.0,98647.0,0.68382632]
[1736117792745,7.997e-05,98648.0,98647.0,1.56539543]
[1736117792952,8.55e-05,98661.0,98660.0,0.1]
[1736117793159,8.55e-05,98661.0,98660.0,0.58695368]
[1736117793372,8.55e-05,98661.0,98660.0,0.68695368]
[1736117794407,8.55e-05,98661.0,98660.0,0.65943032]
[1736117794611,0.0010855,98661.0,98660.0,0.66643032]
[1736117794776,8.55e-05,98661.0,98660.0,0.66948011]
[1736117795114,8.55e-05,98661.0,98660.0,0.67348011]
[1736117795652,0.00013477,98661.0,98660.0,0.67348011]
[1736117796251,0.00013477,98661.0,98660.0,0.66948011]
[1736117796796,0.00013477,98661.0,98660.0,0.67648011]
[1736117797000,0.00013477,98661.0,98660.0,0.67248011]
[1736117797212,0.00113477,98661.0,98660.0,0.67848011]
[1736117797391,0.00113477,98661.0,98660.0,0.69893181]
[1736117797592,0.00113477,98661.0,98660.0,0.70193181]
[1736117798382,0.00113477,98661.0,98660.0,0.72628074]
[1736117800611,0.00113477,98661.0,98660.0,0.82628074]
[1736117801020,0.00113477,98661.0,98660.0,1.36988074]
[1736117802157,0.0788,98687.0,98680.0,0.1]
[1736117802424,0.0887054,98687.0,98686.0,0.123]
[1736117802616,0.0887054,98687.0,98686.0,0.22698632]
[1736117802617,0.07929279,98687.0,98686.0,0.22698632]
[1736117803238,0.07929279,98687.0,98686.0,0.40938232]
[1736117803671,0.07929279,98687.0,98686.0,0.41138232]
[1736117803870,0.07929279,98687.0,98686.0,0.41238232]
[1736117804050,0.00049279,98687.0,98686.0,0.41238232]
[1736117805661,0.00049279,98687.0,98686.0,1.45925801]
[1736117805867,0.00049279,98687.0,98686.0,1.45825801]
[1736117806044,0.00149279,98687.0,98686.0,1.46325801]
[1736117806243,0.00149279,98687.0,98686.0,1.43607574]
[1736117806446,0.00149279,98687.0,98686.0,1.40798232]
[1736117806646,0.00049279,98687.0,98686.0,1.40298232]
[1736117806845,0.00049279,98687.0,98686.0,1.42475358]
[1736117807074,0.00049279,98687.0,98686.0,1.45664534]
[1736117808543,0.0001,98709.0,98708.0,0.282356]